Cogmind - Beta 11.1 @@@ ROGUE MODE // 2022.12.24 @ 01:30:06 Player: kyerz Result: Destroyed by G-47 Trooper with Particle Gun Performance ------------- Evolutions (2) 1000 Regions Visited (5) 1000 Robots Destroyed (48) 240 Value Destroyed (1203) 1203 Prototype IDs (2) 40 Alien Tech Used (0) 0 Bonus (0) 0 TOTAL SCORE: 3483 Bonus ------- None Cogmind --------- Core Integrity 0/550 Matter 300/300 Energy 100/100 System Corruption 0% Temperature Cool (23) Movement Core (400) Ox7 Location -8/Materials Parts ------- > --- POWER (1) -------- (None) > --- PROPULSION (3) --- (None) > --- UTILITY (5) ------ Large Storage Unit Visual Processing Unit Improved Trap Extractor (0/6) > --- WEAPON (2) ------- (None) > --- INVENTORY (15) --- Compact Wheel Large Storage Unit Visual Processing Unit Improved Sensor Array Hardened Light Armor Plating Beam Rifle Beam Rifle Particle Cannon Particle Cannon Gauss Cannon Peak State ------------ > --- POWER ------------ Nuclear Core > --- PROPULSION ------- Light Treads Light Treads Light Treads > --- UTILITY ---------- Large Storage Unit Visual Processing Unit Sensor Array Core Shielding Improved Trap Extractor > --- WEAPON ----------- Heavy Particle Cannon Gauss Cannon > --- INVENTORY -------- Ion Engine Medium Treads Compact Wheel Large Storage Unit Large Storage Unit Visual Processing Unit Improved Sensor Array Hardened Light Armor Plating Beam Rifle Beam Rifle Particle Cannon Particle Cannon Shotgun [Rating: 24] Favorites ----------- Power Ion Engine Engine Ion Engine Power Core Nuclear Core Propulsion Aluminum Leg Treads Light Treads Leg Aluminum Leg Wheel Wheel Utility Large Storage Unit Device Sensor Array Storage Large Storage Unit Processor Visual Processing Unit Protection Utility Shielding Weapon Assault Rifle Energy Gun Particle Gun Energy Cannon Heavy Particle Cannon Ballistic Gun Assault Rifle Ballistic Cannon Improved Light Cannon Launcher Grenade Launcher Special Weapon Mining Laser Build | -11 -10 -10 -9 -9 -8 ------- Run | Scr Mat Min Mat Min Mat Slots Evolved 4 | . . . 2 . 2 Power . | . . . . . . Propulsion 1 | . . . . . 1 Utility 3 | . . . 2 . 1 Weapon . | . . . . . . Parts Attached 76 | 8 16 8 24 5 15 Power 12 | 3 1 2 3 1 2 Engine 11 | 3 1 2 3 1 1 Core 1 | . . . . . 1 Reactor . | . . . . . . Propulsion 24 | 4 7 2 5 2 4 Treads 4 | . . . . . 4 Leg 15 | 2 4 2 5 2 . Wheel 5 | 2 3 . . . . Hover . | . . . . . . Flight . | . . . . . . Utility 12 | . 2 . 6 . 4 Device 3 | . . . 2 . 1 Storage 3 | . 1 . . . 2 Processor 1 | . . . . . 1 Hackware . | . . . . . . Protection 5 | . 1 . 4 . . Artifact . | . . . . . . Weapon 28 | 1 6 4 10 2 5 Energy Gun 10 | . 2 1 5 1 1 Energy Cannon 2 | . . . . 1 1 Ballistic Gun 10 | 1 3 3 2 . 1 Ballistic Cannon 2 | . . . 1 . 1 Launcher 2 | . . . 1 . 1 Special Weapon 2 | . 1 . 1 . . Impact Weapon . | . . . . . . Slashing Weapon . | . . . . . . Piercing Weapon . | . . . . . . Special Melee Weapon . | . . . . . . Unidentified Prototypes . | . . . . . . Parts Lost 17 | . . 1 3 2 11 Power 3 | . . . . 1 2 Propulsion 6 | . . . 1 1 4 Utility 5 | . . . 2 . 3 Weapon 3 | . . 1 . . 2 Highest Loss Streak 10 | . . 1 2 2 10 To Critical Strikes . | . . . . . . Average Slot Usage (%) 92 | . 95 99 92 92 84 Engine 9 | . 14 13 11 6 . Core 1 | . . . . . 7 Treads 1 | . . . . . 8 Leg 16 | . 5 27 20 19 11 Wheel 4 | . 22 . . . . Device 8 | . . . 13 11 10 Storage 11 | . 12 14 11 11 11 Protection 14 | . 10 14 13 22 12 Energy Gun 7 | . 6 4 6 11 6 Energy Cannon 1 | . . . . . 8 Ballistic Gun 10 | . 20 23 11 . . Ballistic Cannon 3 | . . . 3 10 1 Naked Turns . | . . . . . . Heaviest Build 45 | 5 28 30 35 35 45 Greatest Support 60 | 20 26 20 20 20 60 Greatest Overweight (x) 7 | . 1 2 3 2 7 Average Overweight (x) . | . . 1 1 1 . Largest Inventory Capacity 15 | 5 15 15 15 15 15 Average Capacity 14 | 5 14 15 15 15 15 Most Carried 15 | 5 15 15 15 15 15 Average Carried 12 | 3 8 14 13 14 14 Final Capacity 15 | 5 15 15 15 15 15 Final Carried 15 | 5 15 14 14 15 10 Class Distribution -------------------- 64% | Scavenger-Mutant 35% | Mutant Dominant Class ---------------- Mutant | -10/Materials Mutant | -10/Mines Scavenger-Mutant | -9/Materials Scavenger-Mutant | -9/Mines Scavenger-Mutant | -8/Materials Resources | -11 -10 -10 -9 -9 -8 ----------- Run | Scr Mat Min Mat Min Mat Matter Collected 1382 | 295 186 145 317 108 331 Remotely . | . . . . . . Salvage Created 1314 | 55 333 101 477 96 252 Parts 106 | 3 30 7 40 6 20 Haulers Intercepted . | . . . . . . Recyclers Shooed 1 | . . 1 . . . Parts Field Recycled . | . . . . . . Retrieved Matter . | . . . . . . Parts Self-Destructed . | . . . . . . Prevented . | . . . . . . Kills | -11 -10 -10 -9 -9 -8 ------- Run | Scr Mat Min Mat Min Mat Combat Hostiles Destroyed 45 | 1 11 4 17 3 9 Guns 31 | 1 11 4 13 1 1 Cannons 10 | . . . 2 2 6 AOE 4 | . . . 2 . 2 Classes Destroyed 6 | 2 2 . 2 . . Worker 1 | 1 . . . . . Watcher 2 | . 1 . . . 1 Swarmer 21 | . 6 3 7 . 5 Grunt 19 | 1 5 1 7 3 2 Duelist 1 | . . . 1 . . Sentry 4 | . . . 2 . 2 Best Kill Streak 5 | 1 5 3 5 3 4 Combat Bots Only 5 | 1 3 3 5 3 4 Max Kills in Single Turn 2 | 1 1 1 2 1 2 Gunslinging . | . . . . . . Exploded 2 | . . . 2 . 2 Melee . | . . . . . . Uniques/NPCs Destroyed . | . . . . . . Combat | -11 -10 -10 -9 -9 -8 -------- Run | Scr Mat Min Mat Min Mat Damage Taken 3808 | 23 296 304 1090 155 1940 Core 768 | . 78 8 96 24 562 Absorbed by Shields . | . . . . . . Redirected to Shielding 98 | . 4 . 59 11 24 Regen/Repaired (Parts) 53 | . . . 53 . . Core Remaining (%) 78 | 100 . 65 . 70 . Volleys Fired 153 | 5 28 21 51 7 41 Largest 2 | 1 2 2 2 2 2 Hottest 140 | 20 100 70 123 95 140 Shots Fired 272 | 5 55 40 98 15 59 Gun 208 | 5 54 40 81 7 21 Cannon 58 | . . . 13 8 37 Launcher 2 | . . . 1 . 1 Special 4 | . 1 . 3 . . Kinetic 163 | 5 43 24 68 8 15 Thermal 107 | . 12 16 29 7 43 Explosive 2 | . . . 1 . 1 Electromagnetic . | . . . . . . Robot Hit Streak 11 | 4 7 11 9 6 10 Robot Miss Streak 7 | . 5 5 5 1 7 Penetration Max 1 | . . . . . 1 Secondary Targets 2 | . 2 . . . . Max Gunslinging Chain 1 | . 1 . . . . Shots Hit Robots 160 | 4 33 24 55 11 33 Core Hits 83 | 3 18 9 32 4 17 Critical Kills 1 | . . . 1 . . Critical Parts Destroyed . | . . . . . . Critical Strikes 6 | . . 1 4 . 1 Burn 2 | . . 1 1 . . Destroy 1 | . . . 1 . . Blast 3 | . . . 2 . 1 Melee Attacks . | . . . . . . Impact . | . . . . . . Slashing . | . . . . . . Piercing . | . . . . . . Sneak Attacks . | . . . . . . Combat Hostiles . | . . . . . . Follow-up Attacks . | . . . . . . Damage Inflicted 2614 | 53 378 299 816 182 886 Guns 1523 | 53 378 299 556 58 179 Cannons 898 | . . . 128 124 646 Explosions 192 | . . . 132 . 60 Melee . | . . . . . . Ramming 1 | . . . . . 1 Kinetic 1458 | 53 292 172 495 124 322 Thermal 963 | . 86 127 189 58 503 Explosive 192 | . . . 132 . 60 Electromagnetic . | . . . . . . Impact . | . . . . . . Slashing . | . . . . . . Piercing . | . . . . . . Highest Corruption 9 | . . . 9 9 . Average Corruption 8 | . . . 8 9 . Corruption Purged . | . . . . . . Corruption Blocked . | . . . . . . Effects 31 | . . . 17 14 . Message Errors 9 | . . . 4 5 . Matter Fused 5 | . . . 4 1 . Heat Flow Errors 2 | . . . 1 1 . Energy Discharges 5 | . . . 3 2 . Parts Rejected 1 | . . . 1 . . Data Loss (minor) 5 | . . . 3 2 . Data Loss (major) 1 | . . . . 1 . Misfires 1 | . . . . 1 . Alerts 1 | . . . . 1 . Weapon Failures 1 | . . . 1 . . Overload Shots . | . . . . . . Overflow Damage . | . . . . . . Projectiles . | . . . . . . Explosions . | . . . . . . Melee . | . . . . . . Knockbacks 4 | . . . 1 2 1 Impact . | . . . . . . Kinetic 4 | . . . 1 2 1 Secondary . | . . . . . . Self-Inflicted Damage 4 | . . . 4 . . Shots 1 | . . . 1 . . Rammed 3 | . . . . . 3 Targets Rammed 3 | . . . . . 3 Kicked . | . . . . . . Crushed . | . . . . . . Highest Temperature 365 | . 80 108 150 264 365 Average Temperature 82 | . 23 43 32 133 135 Received Heat Transfer 1611 | 12 96 153 204 84 1062 Siege Activations . | . . . . . . Robots Corrupted . | . . . . . . Combat Hostiles . | . . . . . . Parts Fried . | . . . . . . Impact Corruptions . | . . . . . . Robots Melted . | . . . . . . Combat Hostiles . | . . . . . . Parts Melted 1 | . . . 1 . . Heat Transferred 2096 | . 259 444 522 148 723 Parts Sabotaged . | . . . . . . Parts Stolen . | . . . . . . Parts Stripped . | . . . . . . Power Chain Reactions . | . . . . . . Missiles Intercepted . | . . . . . . Alert | -11 -10 -10 -9 -9 -8 ------- Run | Scr Mat Min Mat Min Mat Peak Influence 354 | 25 202 114 354 174 189 Initial 76 | . 16 24 44 76 . Average 101 | 5 58 85 175 87 66 Maximum Alert Level 1 | . 1 . 1 . . Low Security (%) 86 | 100 93 100 58 100 100 Level 1 13 | . 6 . 41 . . Level 2 . | . . . . . . Level 3 . | . . . . . . Level 4 . | . . . . . . Level 5 . | . . . . . . High Security . | . . . . . . Max Security . | . . . . . . Squads Dispatched 5 | . 2 . 1 . 2 Investigation 2 | . 1 . . . 1 Extermination . | . . . . . . Reinforcement 2 | . 1 . 1 . . Assault 1 | . . . . . 1 Garrison . | . . . . . . Intercept . | . . . . . . Searches Triggered . | . . . . . . Construction Impeded . | . . . . . . Haulers Reinforced . | . . . . . . Active Scanning Responses . | . . . . . . Cargo Convoy Interrupts . | . . . . . . Stealth | -11 -10 -10 -9 -9 -8 --------- Run | Scr Mat Min Mat Min Mat Distress Signals . | . . . . . . Communications Jammed . | . . . . . . Distress Signals . | . . . . . . Times Spotted 80 | 1 18 5 24 5 27 Peak Tracking Total 7 | 1 3 3 6 3 7 Tactical Retreats 7 | . 2 . 2 1 2 Traps | -11 -10 -10 -9 -9 -8 ------- Run | Scr Mat Min Mat Min Mat Traps Triggered 3 | . . . 2 . 1 Indirectly . | . . . . . . Trap Hack Attempts . | . . . . . . Triggered . | . . . . . . Disarmed . | . . . . . . Reprogrammed . | . . . . . . Reused . | . . . . . . Traps Extracted . | . . . . . . Installed . | . . . . . . Triggered . | . . . . . . Machines | -11 -10 -10 -9 -9 -8 ---------- Run | Scr Mat Min Mat Min Mat Machines Disabled . | . . . . . . Max in Single Turn . | . . . . . . Garrison Access 1 | . . . . . 1 Machines Sabotaged . | . . . . . . Garrisons Compromised . | . . . . . . Overloaded Fab Kills . | . . . . . . Hacking | -11 -10 -10 -9 -9 -8 --------- Run | Scr Mat Min Mat Min Mat Machines Accessed 8 | . 3 . 3 1 1 Terminals 5 | . 3 . 2 . . Fabricators . | . . . . . . Repair Stations 1 | . . . 1 . . Recycling Units . | . . . . . . Scanalyzers . | . . . . . . Garrison Access 1 | . . . . . 1 Total Hacks 20 | . 11 . 6 1 2 Successful 12 | . 6 . 5 1 . Failed 8 | . 5 . 1 . 2 Catastrophic . | . . . . . . Database Lockouts . | . . . . . . Manual 7 | . 5 . 2 . . Terminals 15 | . 11 . 4 . . Fabricators . | . . . . . . Repair Stations 2 | . . . 2 . . Recycling Units . | . . . . . . Scanalyzers . | . . . . . . Garrison Access 2 | . . . . . 2 Terminal Hacks 7 | . 4 . 2 1 . Record 3 | . 3 . . . . Prototype ID Bank 1 | . . . 1 . . Open Door 1 | . . . . 1 . Unreport Threat 1 | . 1 . . . . Recall Investigation 1 | . . . 1 . . Fabricator Hacks . | . . . . . . Repair Station Hacks 2 | . . . 2 . . Scan Component 1 | . . . 1 . . Repair 1 | . . . 1 . . Recycling Unit Hacks . | . . . . . . Scanalyzer . | . . . . . . Garrison Access Hacks . | . . . . . . Unauthorized Hacks 3 | . 2 . 1 . . Terminals 3 | . 2 . 1 . . Track 3 | . 2 . 1 . . Fabricators . | . . . . . . Repair Stations . | . . . . . . Recycling Units . | . . . . . . Scanalyzers . | . . . . . . Garrison Access . | . . . . . . Data Cores Recovered . | . . . . . . Used . | . . . . . . Hacking Detections 7 | . 3 . 3 . 1 Full Trace Events 2 | . 1 . . . 1 Feedback Events . | . . . . . . Feedback Blocked . | . . . . . . Robot Schematics Acquired . | . . . . . . Robots Built . | . . . . . . Authchips . | . . . . . . Time . | . . . . . . Total Robot Build Rating . | . . . . . . Part Schematics Acquired . | . . . . . . Parts Built . | . . . . . . Authchips . | . . . . . . Time . | . . . . . . Total Part Build Rating . | . . . . . . Parts Repaired 1 | . . . 1 . . Time 26 | . . . 26 . . Parts Recycled . | . . . . . . Recycled Matter . | . . . . . . Retrieved Matter . | . . . . . . Retrieved Components . | . . . . . . Parts Scanalyzed . | . . . . . . Part Schematics Acquired . | . . . . . . Parts Damaged . | . . . . . . Bothacking | -11 -10 -10 -9 -9 -8 ------------ Run | Scr Mat Min Mat Min Mat Used RIF Installer . | . . . . . . Robots Hacked . | . . . . . . Non-combat . | . . . . . . Combat . | . . . . . . Robot Hacks Applied . | . . . . . . Relay Couplers Released . | . . . . . . Fabnet Peak Effective % . | . . . . . . Robots Rewired . | . . . . . . Allies Hacked . | . . . . . . Hacks Repelled . | . . . . . . Allies | -11 -10 -10 -9 -9 -8 -------- Run | Scr Mat Min Mat Min Mat Total Allies . | . . . . . . Largest Group . | . . . . . . Highest-Rated Group . | . . . . . . Highest-Rated Ally . | . . . . . . Total Orders . | . . . . . . Ally Attacks . | . . . . . . Total Damage . | . . . . . . Kills . | . . . . . . Allies Corrupted . | . . . . . . Allies Melted . | . . . . . . Intel | -11 -10 -10 -9 -9 -8 ------- Run | Scr Mat Min Mat Min Mat Robot Analysis Total . | . . . . . . Derelict Logs Recovered 2 | . . 1 . 1 . Drone Launches . | . . . . . . Drone Recoveries . | . . . . . . Exploration | -11 -10 -10 -9 -9 -8 ------------- Run | Scr Mat Min Mat Min Mat Turns Passed 2881 | 75 588 343 856 494 525 Spaces Moved 1281 | 69 338 141 310 223 200 Core 35 | 32 . . . . 3 Treads 58 | . . . . . 58 Legs 851 | . 38 141 310 223 139 Wheels 337 | 37 300 . . . . Hover . | . . . . . . Flight . | . . . . . . Fastest Speed 50 | 50 80 190 190 190 160 Average Speed 164 | 66 107 190 195 202 185 Slowest Speed 400 | 80 190 260 330 260 400 Overloaded Moves . | . . . . . . Propulsion Burnouts . | . . . . . . Robots Hopped . | . . . . . . Cave-ins Triggered 1 | . . . 1 . . Exploration Rate (%) 30 | 7 36 34 29 55 20 Regions Visited 5 Branch Regions 2 Pre-discovered Areas . | . . . . . . Known Exits Taken 1 | . . . . 1 . Unknown Exits Taken 4 | 1 1 1 1 . . Scrap Searched . | . . . . . . Spaces Dug 4 | . 1 . 3 . . Terrain Destroyed 30 | . 1 . 8 1 20 Melee . | . . . . . . Projectile 17 | . 1 . 4 1 11 AOE 13 | . . . 4 . 9 Terrain Rammed . | . . . . . . Walls Destroyed . | . . . . . . Machines Disabled . | . . . . . . Actions | -11 -10 -10 -9 -9 -8 --------- Run | Scr Mat Min Mat Min Mat Total 1779 | 93 506 177 462 254 287 Wait 182 | . 107 . 47 12 16 Move 1276 | 68 337 140 309 222 200 Hop . | . . . . . . Pick Up 54 | 9 15 3 19 5 3 Fast Attach 9 | 1 . 1 1 . 6 Attach 41 | 6 5 4 15 4 7 Detach 2 | 2 . . . . . Swap 26 | 1 11 3 8 1 2 Drop 33 | 1 3 5 12 3 9 Fire 153 | 5 28 21 51 7 41 Melee . | . . . . . . Ram 1 | . . . . . 1 Kick . | . . . . . . Crush 2 | . . . . . 2 Escape Stasis . | . . . . . . Rewire . | . . . . . . Trap . | . . . . . . Miscellaneous . | . . . . . . Route ------- -11/Scrapyard -10/Materials -10/Mines (discovered 2 exits: *Mat x2) -9/Materials (discovered 2 exits: Mat / *Min) -9/Mines (discovered 2 exits: *Mat x2) -8/Materials History --------- Turn | Location | Event 2 | -11/Scrapyard | Met Revision 17 52 | -11/Scrapyard | Discovered new exit (range 8) 76 | -11/Scrapyard | Entered Materials 310 | -10/Materials | Build established: Mutant 535 | -10/Materials | Discovered new exit (range 7) 664 | -10/Materials | Entered Mines 799 | -10/Mines | Learned location of 1 exit from Materials 801 | -10/Mines | Discovered new exit (range 11) 986 | -10/Mines | Discovered new exit (range 10) 1007 | -10/Mines | Entered Materials 1007 | -9/Materials | Evolved 2 slots: Utility x2 1008 | -9/Materials | Identified exit to Materials 1088 | -9/Materials | Repaired Aluminum Leg 1311 | -9/Materials | Build established: Scavenger-Mutant 1474 | -9/Materials | Crushed by falling debris 1854 | -9/Materials | Discovered new exit (range 6) 1863 | -9/Materials | Entered Mines 2236 | -9/Mines | Learned Materials security intel 2249 | -9/Mines | Discovered exit to Materials (range 12) 2304 | -9/Mines | Discovered exit to Materials (range 10) 2324 | -9/Mines | Met a Derelict who couldn't figure out how to use a Trap Extractor 2357 | -9/Mines | Entered Materials 2357 | -8/Materials | Evolved 2 slots: Propulsion x1, Utility x1 2869 | -8/Materials | Core integrity fell below 50% 2878 | -8/Materials | Core integrity fell below 20% 2882 | -8/Materials | Destroyed by G-47 Trooper with Particle Gun Last Messages --------------- 02848_ Critical hit (Burn: +37). 02849_ Lgt. Treads destroyed. Note that some effects don't stack, e.g. attaching both Lrg. Storage Unit and Lrg. Storage Unit does not combine the two effects (all such effects are marked ). 02850_ Lgt. Treads destroyed. 02851_ G-47 Trooper destroyed. 02852_ Hvy. Particle Cannon destroyed. 02857_ K-01 Serf collects debris. 02858_ Slammed into G-47 Trooper. 02859_ Acquired 53 matter. 02860_ K-01 Serf collects debris. 02860_ Shotgun destroyed. 02860_ Critical hit (Burn: +37). 02860_ Slammed into G-47 Trooper. 02862_ Med. Treads destroyed. 02863_ Slammed into G-47 Trooper. 02865_ K-01 Serf collects debris. 02870_ Dropped Lrg. Storage Unit. 02879_ Critical hit (Burn: +37). Map ----- +----------------------------------------------------+ | ????????????????????????????????????# """"" # # | | ????????????????????????????????????#= """"" # # | | ????????????????????????????????????# """"" + | | ????????????????????????????????????# """"" # | | ????????????????????????????????????#] """"" ##### | | ????????????????????????###?????????# """"" #???? | | ???????????????????????? ?????????#= #???? | | ???????????????????????? #????????##########???? | | ???????????????????????? #???????????????######? | | ???????????????????????# #???????????????# ? | | ???????????????????????# #???????????????# | | ???????????????????????# #???????????????# | | ???????????????????????# #???????????????# | | ???????????????????????# #???????????????# | | ???????????????????????# #???????????????# ! | | ???????????????????????# #???????????????######? | | ???????????????????????# #?????????????????????? | | ???????????????????????# ##????????????????????? | | ???????????????????????# #?????????????????????? | | ???????????????????????# #?????????????????????# | | ???????????????????????# #????????????????????/# | | ???????????????????????# #???????????????????? # | | ???????????????????????# = #??????????????????? # | | ???????????????????????#| #??????????????????" ? | | ?????????????###########= #????????????????? ?? | | ?????????????# ## @ #???????????????? "Y??? | | ?????????????# """##g ##########+###?? "???? | | ?????????????# """#k r####### ###/###### | | ?????????????# " !#g!* %% % | | ?????????????# [%%igg= % | | ?????????????# " " %%#gk ! [] | | ?????????????# " !#k ####### ###+###### | | ?????????????# ## #### #### ##? ????? | | ?????????????# ## #??###??# #?? ????? | | ?????????????###########w #???????# #? ???? | | ???????????????????????#k[ #???????+ #? ???? | | ???????????????????????# #???????# ## ??? | | ???????????????????????# #???????# ## ??? | | ??????????????????????## ##??????# #########?? | | ??????????############# [ #??????# ?????????? | | ??????? %% #??????# ?????????? | | ??????? % #??????# ????????? | | ??????? #??????######????????? | | ??????? ####+##### ##???????????????????? | | ???????? ????????????########???????????????????? | | ?????????????????????????????????????????????????? | | ?????????????????????????????????????????????????? | | ?????????????????????????????????????????????????? | | ?????????????????????????????????????????????????? | | ?????????????????????????????????????????????????? | +----------------------------------------------------+ Best States ------------- Heat Dissipation 38 Energy Generation 14 Energy Capacity 265 Matter Stores 300 Matter Capacity 450 Sight Range 18 Robot Scan Range 14 Terrain Scan Density 10 Armor Coverage 150 Core Shielding 20 Utility Shielding 33 Weapon Shielding 33 Evasion (%) 50 Recoil Reduction 3 Trap Extractor Capacity 6 Item Schematics ----------------- None Robot Schematics ------------------ None Fabricated ------------ Nothing Alien Tech Used ----------------- None Achievements -------------- Everything Is Under Control Please Form A Line True Hacker Unlikely Earthworm Challenges ------------ None Game ------ Seed VortexLinkedCharge Manual? 0 Play Time 01:17:07 Cumulative 6.4 hours Start 2022.12.23 @ 22:22:49 End 2022.12.24 @ 01:30:06 Sessions 3 Manual Loads 0 Difficulty Rogue Special Mode None Game No. 2 Rogue 2 Adventurer 0 Explorer 0 Win Type - Total 0 Types 0/0/0/0/0/0/0/0/0 Lore% 4 Gallery% 8 Achievement% 10 Wizard Run 0 Options --------- ASCII 0 Keyboard 0 Movement Mouse Keybinds 0 Fullscreen 2 Font 24/Smallcaps Map View 76x50 Tactical HUD 1 Map Filters NONE Filters NONE Steam 1 RUN: 687a8b85-5f72-46be-9f31-df7e7b0900e2